fUST/lending_fUST_20240414
["ID","MTS","AMOUNT","RATE_DAILY","PERIOD"]
[322534870,1713040662090,-251.48474496,0.0004,15]
[322534871,1713040662114,-502.129475,0.00040526,2]
[322534872,1713040662137,-7844.10287274,0.00040999,4]
[322534873,1713040662161,-169.373698,0.00041855,120]
[322534874,1713040662184,-200.0,0.00042594,2]
[322534875,1713040662207,-200.0,0.00042594,30]
[322534876,1713040662230,-199.849455,0.00042841,2]
[322534877,1713040662253,-783.0,0.00043422,3]
[322534878,1713040662277,-1061.68591961,0.00044999,4]
[322534879,1713040662300,-156.93393326,0.00045024,4]
[322534880,1713040662327,-164.0,0.00047,90]
[322534881,1713040662352,-284.0,0.00047764,3]
[322534882,1713040662376,-164.0,0.00048904,90]
[322534883,1713040662400,-1000.0,0.00049999,30]
[322534884,1713040662423,-154.64431807,0.00049999,4]
[322534885,1713040662447,-154.64431807,0.0005,30]
[322534886,1713040662474,-168.62133915,0.0005165,14]
[322534887,1713040662500,-157.694231,0.0005175,2]
[322534888,1713040662530,-331.64371681,0.00052184,4]
[322534889,1713040662554,-169.373698,0.00052319,120]
[322534890,1713040662586,-8524.31651613,0.00054792,120]
[322534891,1713040662612,-3374.50106562,0.00054793,120]
[322534892,1713040662636,-500.0,0.00054793,120]
[322534893,1713040662659,-500.0,0.00054793,120]
[322534894,1713040662683,-500.0,0.00054794,20]
[322534895,1713040662706,-500.0,0.00054794,120]
[322534896,1713040662730,-500.0,0.00054794,120]
[322534897,1713040662754,-500.0,0.00054794,120]
[322534898,1713040662777,-500.0,0.00054794,120]
[322534899,1713040662799,-500.0,0.00054794,120]
[322534900,1713040662826,-500.0,0.00054794,30]
[322534901,1713040662849,-500.0,0.00054794,120]
[322534902,1713040662872,-500.6711624,0.00054794,120]
[322534903,1713040663025,-500.0,0.00054794,120]
[322534904,1713040663049,-500.0,0.00054794,120]
[322534905,1713040663075,-500.0,0.00054794,120]
[322534906,1713040663098,-500.0,0.00054794,120]
[322534907,1713040663120,-504.20478867,0.00054794,120]
[322534908,1713040663143,-500.0,0.00054794,120]
[322534909,1713040663165,-500.0,0.00054794,120]
[322534910,1713040663188,-500.0,0.00054794,120]
[322534911,1713040663211,-500.0,0.00054794,120]
[322534912,1713040663233,-500.0,0.00054794,120]
[322534913,1713040663255,-500.0,0.00054794,120]
[322534914,1713040663280,-500.0,0.00054794,120]
[322534915,1713040663302,-500.0,0.00054794,120]
[322534916,1713040663329,-500.0,0.00054794,120]
[322534917,1713040663352,-500.0,0.00054794,120]
[322534918,1713040663376,-501.00411996,0.00054794,120]
[322534919,1713040663400,-500.0,0.00054794,120]
[322534920,1713040663423,-500.0,0.00054794,120]
[322534921,1713040663448,-500.0,0.00054794,120]
[322534922,1713040663472,-500.0,0.00054794,120]
[322534923,1713040663494,-500.0,0.00054794,120]
[322534924,1713040663520,-500.0,0.00054794,120]
[322534925,1713040663542,-205.92793265,0.00054794,120]
[322534926,1713040663569,-500.0,0.00054794,120]
[322534927,1713040663592,-500.0,0.00054794,120]
[322534928,1713040663616,-500.0,0.00054794,120]
[322534929,1713040663640,-500.0,0.00054794,120]
[322534930,1713040663664,-500.0,0.00054794,120]
[322534931,1713040663688,-505.71973689,0.00054794,120]
[322534932,1713040663712,-500.0,0.00054794,120]
[322534933,1713040663734,-500.0,0.00054794,120]
[322534934,1713040663761,-519.19943181,0.00054794,120]
[322534935,1713040663785,-500.0,0.00054794,120]
[322534936,1713040663810,-500.0,0.00054794,120]
[322534937,1713040663837,-500.0,0.00054794,120]
[322534938,1713040663861,-500.0,0.00054794,120]
[322534939,1713040663884,-500.0,0.00054794,120]
[322534940,1713040663908,-500.0,0.00054794,120]
[322534941,1713040663930,-500.0,0.00054794,120]
[322534942,1713040663956,-515.87322761,0.00054794,120]
[322534943,1713040663979,-503.25069039,0.00054794,120]
[322534944,1713040664004,-503.49918991,0.00054794,120]
[322534945,1713040664026,-500.0,0.00054794,120]
[322534946,1713040664050,-500.0,0.00054794,120]
[322534947,1713040664079,-500.0,0.00054794,120]
[322534948,1713040664104,-500.0,0.00054794,120]
[322534949,1713040664128,-500.0,0.00054794,120]
[322534950,1713040664150,-500.0,0.00054794,120]
[322534951,1713040664174,-500.0,0.00054794,120]
[322534952,1713040664198,-500.0,0.00054794,120]
[322534953,1713040664220,-500.0,0.00054794,120]
[322534954,1713040664245,-500.0,0.00054794,120]
[322534955,1713040664269,-500.0,0.00054794,120]
[322534956,1713040664293,-500.0,0.00054794,120]
[322534957,1713040664316,-364.89616352,0.00054794,120]
[322534958,1713040664344,-500.0,0.00054794,120]
[322534959,1713040664369,-500.0,0.00054794,120]
[322534960,1713040664393,-500.0,0.00054794,120]
[322534961,1713040664417,-500.0,0.00054794,120]
[322534962,1713040664440,-500.0,0.00054794,120]
[322534963,1713040664466,-500.0,0.00054794,120]
[322534964,1713040664489,-500.0,0.00054794,120]
[322534965,1713040664514,-500.0,0.00054794,120]
[322534966,1713040664538,-500.0,0.00054794,120]
[322534967,1713040664561,-500.0,0.00054794,120]
[322534968,1713040664588,-500.0,0.00054794,120]
[322534969,1713040664611,-500.0,0.00054794,120]
[322534970,1713040664636,-500.0,0.00054794,120]
[322534971,1713040664660,-500.0,0.00054794,120]
[322534972,1713040664684,-500.0,0.00054794,120]
[322534973,1713040664712,-500.0,0.00054794,120]
[322534974,1713040664735,-500.0,0.00054794,120]
[322534975,1713040664759,-520.90657266,0.00054794,120]
[322534976,1713040664783,-500.0,0.00054794,120]
[322534977,1713040664807,-500.0,0.00054794,120]
[322534978,1713040664833,-500.0,0.00054794,120]
[322534979,1713040664857,-500.0,0.00054794,120]
[322534980,1713040664880,-500.0,0.00054794,120]
[322534981,1713040664909,-500.0,0.00054794,120]
[322534982,1713040664932,-500.0,0.00054794,120]
[322534983,1713040664955,-500.0,0.00054794,120]
[322534984,1713040664978,-500.0,0.00054794,120]
[322534985,1713040665001,-500.0,0.00054794,120]
[322534986,1713040665026,-331.3346918,0.00054794,120]
[322534987,1713040672702,-152.77881303,0.0004302,30]
[322534988,1713040672727,-152.77881303,0.00047493,30]
[322534989,1713040672751,-168.6653082,0.00054794,120]
[322534990,1713040672775,-500.0,0.00054794,120]
[322534991,1713040672799,-500.0,0.00054794,120]
[322534992,1713040672827,-500.0,0.00054794,120]
[322534993,1713040672850,-503.55964822,0.00054794,120]
[322534994,1713040672873,-504.10448179,0.00054794,120]
[322534995,1713040672896,-1000.0,0.00054794,120]
[322534996,1713040672919,-374.25531236,0.00054794,120]
[322534997,1713040672942,-500.0,0.00054794,120]
[322534998,1713040672965,-183.29234504,0.00054794,120]
[322534999,1713040672988,-500.0,0.00054794,120]
[322535000,1713040673012,-375.99736236,0.00054794,120]
[322535001,1713040673036,-500.0,0.00054794,120]
[322535002,1713040673059,-500.0,0.00054794,120]
[322535003,1713040673084,-501.37377778,0.00054794,120]
[322535004,1713040673109,-500.0,0.00054794,120]
[322535005,1713040673133,-206.1262845,0.00054794,120]
[322535006,1713040673157,-500.0,0.00054794,120]
[322535007,1713040673182,-617.20580798,0.00054794,120]
[322535008,1713040673206,-300.0,0.00054794,7]
[322535009,1713040673230,-500.0,0.00054794,120]
[322535010,1713040673255,-500.0,0.00054794,120]
[322535011,1713040673279,-500.0,0.00054794,120]
[322535012,1713040673303,-500.0,0.00054794,120]
[322535013,1713040673329,-500.0,0.00054794,120]
[322535014,1713040673352,-500.0,0.00054794,120]
[322535015,1713040673376,-500.0,0.00054794,120]
[322535016,1713040673400,-500.0,0.00054794,120]
[322535017,1713040673424,-500.0,0.00054794,120]
[322535018,1713040673447,-500.0,0.00054794,120]
[322535019,1713040673476,-500.0,0.00054794,120]
[322535020,1713040673614,-500.0,0.00054794,120]
[322535021,1713040673638,-500.0,0.00054794,120]
[322535022,1713040673661,-500.83121732,0.00054794,120]
[322535023,1713040673686,-500.0,0.00054794,120]
[322535024,1713040673709,-500.0,0.00054794,120]
[322535025,1713040673733,-500.0,0.00054794,120]
[322535026,1713040673756,-500.0,0.00054794,120]
[322535027,1713040673779,-500.0,0.00054794,120]
[322535028,1713040673802,-500.0,0.00054794,120]
[322535029,1713040673828,-503.40471124,0.00054794,120]
[322535030,1713040673851,-500.0,0.00054794,120]
[322535031,1713040673874,-500.0,0.00054794,120]
[322535032,1713040673899,-500.0,0.00054794,120]
[322535033,1713040673922,-500.0,0.00054794,120]
[322535034,1713040673945,-500.0,0.00054794,120]
[322535035,1713040673968,-550.84663727,0.00054794,120]
[322535036,1713040673991,-500.0,0.00054794,120]
[322535037,1713040674014,-500.0,0.00054794,7]
[322535038,1713040674038,-500.0,0.00054794,120]
[322535039,1713040674061,-500.0,0.00054794,120]
[322535040,1713040674086,-500.0,0.00054794,120]
[322535041,1713040674110,-500.0,0.00054794,120]
[322535042,1713040674133,-340.53092421,0.00054794,120]
[322535043,1713040674156,-500.0,0.00054794,120]
[322535044,1713040674180,-516.45355752,0.00054794,120]
[322535045,1713040674212,-500.0,0.00054794,120]
[322535046,1713040674237,-500.0,0.00054794,120]
[322535047,1713040674260,-500.0,0.00054794,120]
[322535048,1713040674282,-500.0,0.00054794,120]
[322535049,1713040674305,-500.0,0.00054794,120]
[322535050,1713040674332,-500.0,0.00054794,120]
[322535051,1713040674355,-500.0,0.00054794,120]
[322535052,1713040674377,-500.0,0.00054794,120]
[322535053,1713040674400,-500.0,0.00054794,120]
[322535054,1713040674422,-500.0,0.00054794,120]
[322535055,1713040674446,-500.0,0.00054794,120]
[322535056,1713040674470,-500.0,0.00054794,120]
[322535057,1713040674493,-500.0,0.00054794,120]
[322535058,1713040674522,-2500.0,0.00054794,120]
[322535059,1713040674545,-503.16549345,0.00054794,120]
[322535060,1713040674569,-500.0,0.00054794,120]
[322535061,1713040674600,-472.21653685,0.00054794,120]
[322535062,1713040674626,-500.0,0.00054794,120]
[322535063,1713040674650,-500.0,0.00054794,120]
[322535064,1713040674676,-500.0,0.00054794,120]
[322535065,1713040674702,-500.45,0.00054794,120]
[322535066,1713040674726,-500.0,0.00054794,120]
[322535067,1713040674750,-500.20315181,0.00054794,120]
[322535068,1713040674774,-500.0,0.00054794,120]
[322535069,1713040674797,-570.23,0.00054794,120]
[322535070,1713040674822,-500.0,0.00054794,120]
[322535071,1713040674850,-273.20910696,0.00054794,120]
[322535072,1713040674876,-762.34,0.00054794,120]
[322535073,1713040674900,-500.0,0.00054794,120]
[322535074,1713040674925,-500.0,0.00054794,120]
[322535075,1713040674950,-500.0,0.00054794,120]
[322535076,1713040674973,-500.0,0.00054794,120]
[322535077,1713040674997,-500.0,0.00054794,120]
[322535078,1713040675022,-500.0,0.00054794,120]
[322535079,1713040675045,-500.0,0.00054794,120]
[322535080,1713040675070,-500.0,0.00054794,120]
[322535081,1713040675101,-500.0,0.00054794,120]
[322535082,1713040675126,-500.0,0.00054794,120]
[322535083,1713040675153,-500.0,0.00054794,120]
[322535084,1713040675182,-500.0,0.00054794,120]
[322535085,1713040675224,-2574.52,0.00054794,120]
[322535086,1713040675249,-500.0,0.00054794,120]
[322535087,1713040675273,-500.0,0.00054794,120]
[322535088,1713040675296,-500.0,0.00054794,120]
[322535089,1713040675321,-1036.89,0.00054794,120]
[322535090,1713040675347,-500.0,0.00054794,120]
[322535091,1713040675369,-227.49288985,0.00054794,120]
[322535092,1713040675393,-418.11304269,0.00054794,120]
[322535093,1713040675417,-500.0,0.00054794,21]
[322535094,1713040675442,-500.0,0.00054794,120]
[322535095,1713040675466,-590.04462163,0.00054794,120]
[322535096,1713040675493,-500.0,0.00054794,120]
[322535097,1713040675517,-667.79,0.00054794,120]
[322535098,1713040675543,-500.0,0.00054794,120]
[322535099,1713040675566,-500.0,0.00054794,120]
[322535100,1713040675593,-500.0,0.00054794,120]
[322535101,1713040675617,-500.0,0.00054794,120]
[322535102,1713040675642,-500.0,0.00054794,120]
[322535103,1713040675666,-500.0,0.00054794,120]
[322535104,1713040675690,-500.0,0.00054794,120]
[322535105,1713040675715,-2251.27,0.00054794,120]
[322535106,1713040675740,-500.0,0.00054794,120]
[322535107,1713040675770,-500.0,0.00054794,120]
[322535108,1713040675793,-500.0,0.00054794,120]
[322535109,1713040675817,-500.0,0.00054794,120]
[322535110,1713040675846,-500.0,0.00054794,120]
[322535111,1713040675870,-500.0,0.00054794,120]
[322535112,1713040675893,-513.19683372,0.00054794,120]
[322535113,1713040675918,-500.0,0.00054794,120]
[322535114,1713040675942,-500.0,0.00054794,120]
[322535115,1713040675966,-500.0,0.00054794,120]
[322535116,1713040675990,-500.0,0.00054794,120]
[322535117,1713040676014,-500.0,0.00054794,120]
[322535118,1713040676038,-500.0,0.00054794,120]
[322535119,1713040676062,-500.0,0.00054794,120]
[322535120,1713040676089,-500.0,0.00054794,120]
[322535121,1713040676114,-500.0,0.00054794,120]
[322535122,1713040676139,-653.03,0.00054794,120]
[322535123,1713040676163,-420.36171624,0.00054794,120]
[322535124,1713040676186,-500.0,0.00054794,120]
[322535125,1713040676211,-500.0,0.00054794,120]
[322535126,1713040676234,-500.0,0.00054794,120]
[322535127,1713040676258,-500.0,0.00054794,120]
[322535128,1713040676281,-223.33362433,0.00054794,120]
[322535129,1713040676305,-500.0,0.00054794,120]
[322535130,1713040676335,-500.0,0.00054794,120]
[322535131,1713040676360,-500.0,0.00054794,120]
[322535132,1713040676384,-500.0,0.00054794,120]
[322535133,1713040676409,-500.0,0.00054794,120]
[322535134,1713040676432,-500.0,0.00054794,120]
[322535135,1713040676456,-500.0,0.00054794,120]
[322535136,1713040676484,-500.0,0.00054794,120]
[322535137,1713040676509,-500.0,0.00054794,120]
[322535138,1713040676534,-500.0,0.00054794,120]
[322535139,1713040676556,-500.0,0.00054794,120]
[322535140,1713040676582,-500.0,0.00054794,120]
[322535141,1713040676608,-500.0,0.00054794,120]
[322535142,1713040676632,-343.84115834,0.00054794,120]
[322535143,1713040676656,-500.0,0.00054794,120]
[322535144,1713040676681,-500.0,0.00054794,120]
[322535145,1713040676705,-500.0,0.00054794,120]
[322535146,1713040676729,-219.28494068,0.00054794,120]
[322535147,1713040676753,-500.0,0.00054794,120]
[322535148,1713040676777,-518.41033469,0.00054794,120]
[322535149,1713040676800,-337.08274246,0.00054794,120]
[322535150,1713040676828,-861.81,0.00054794,120]
[322535151,1713040676852,-500.0,0.00054794,120]
[322535152,1713040676876,-500.0,0.00054794,60]
[322535153,1713040676999,-500.0,0.00054794,120]
[322535154,1713040677023,-500.0,0.00054794,120]
[322535155,1713040677047,-250.52552832,0.00054794,120]
[322535156,1713040677070,-435.48979517,0.00054794,120]
[322535157,1713040677098,-500.0,0.00054794,120]
[322535158,1713040677122,-500.0,0.00054794,120]
[322535159,1713040677146,-500.0,0.00054794,120]
[322535160,1713040677171,-586.46,0.00054794,120]
[322535161,1713040677195,-500.0,0.00054794,120]
[322535162,1713040677219,-500.0,0.00054794,120]
[322535163,1713040677243,-500.0,0.00054794,120]
[322535164,1713040677268,-500.0,0.00054794,120]
[322535165,1713040677297,-500.0,0.00054794,120]
[322535166,1713040677320,-500.0,0.00054794,120]
[322535167,1713040677355,-500.0,0.00054794,120]
[322535168,1713040677378,-500.0,0.00054794,120]
[322535169,1713040677403,-500.0,0.00054794,120]
[322535170,1713040677428,-500.0,0.00054794,120]
[322535171,1713040677452,-158.62306947,0.00057521,120]
[322535172,1713040677477,-152.77881303,0.00059469,120]
[322535173,1713040677501,-163.862063,0.00060423,120]
[322535174,1713040677528,-502.129475,0.00060789,30]
[322535175,1713040677553,-158.62306948,0.00062042,120]
[322535176,1713040677585,-150.63846768,0.00062394,2]
[322535177,1713040677611,-169.373698,0.00062783,120]
[322535178,1713040677635,-157.694231,0.00063927,2]
[322535179,1713040677715,500.0,0.00054794,120]
[322535180,1713040677779,500.0,0.00054794,120]
[322535181,1713040677861,500.0,0.00054794,120]
[322535182,1713040678415,500.0,0.00054794,120]
[322535183,1713040679054,223.3105943,0.00054793,4]
[322535184,1713040687684,-154.61346633,0.0005,30]
[322535185,1713040687710,-1061.68591961,0.00054792,4]
[322535186,1713040687736,-241.82332748,0.00054793,4]
[322535187,1713040687764,-154.61346633,0.00054793,4]
[322535188,1713040687788,-2921.62539655,0.00054793,2]
[322535189,1713040687814,-500.0,0.00054794,120]
[322535190,1713040687844,-500.0,0.00054794,120]
[322535191,1713040687869,-500.0,0.00054794,120]
[322535192,1713040687894,-500.0,0.00054794,120]
[322535193,1713040687918,-500.0,0.00054794,120]
[322535194,1713040687946,-509.23926256,0.00054794,120]
[322535195,1713040687977,-500.0,0.00054794,120]
[322535196,1713040688006,-500.0,0.00054794,120]
[322535197,1713040688034,-500.0,0.00054794,120]
[322535198,1713040688113,517.16600379,0.00054794,120]
[322535199,1713040689073,500.0,0.00054794,120]
[322535200,1713040691768,500.0,0.00054794,120]
[322535201,1713040701456,-305.78899216,0.00054794,120]
[322535202,1713040701494,-500.0,0.00054794,120]
[322535203,1713040701602,1014.52,0.00054794,120]
[322535204,1713040702578,500.0,0.00054794,120]
[322535205,1713040702887,500.0,0.00054794,120]
[322535206,1713040706162,500.0,0.00054794,120]
[322535207,1713040709067,500.0,0.00054794,120]
[322535208,1713040709200,154.61346633,0.0005,30]
[322535209,1713040709311,500.0,0.00054794,120]
[322535210,1713040711242,500.0,0.00054794,120]
[322535211,1713040711651,500.0,0.00054794,120]
[322535212,1713040720147,-500.0,0.00054794,120]
[322535213,1713040720180,-500.0,0.00054794,120]
[322535214,1713040720212,-508.52981161,0.00054794,120]
[322535215,1713040720243,-500.0,0.00054794,120]
[322535216,1713040720275,-186.98402372,0.00054794,120]
[322535217,1713040720306,-155.03537703,0.00069,7]
[322535218,1713040720337,-157.44846143,0.00069165,120]
[322535219,1713040720371,-1423.65943796,0.0007,120]
[322535220,1713040720402,-157.44846143,0.00070729,120]
[322535221,1713040720432,-152.77881303,0.00071882,120]
[322535222,1713040720643,-24900.0,0.00074826,2]
[322535223,1713040720673,-166.666666,0.00074953,2]
[322535224,1713040720698,-157.694231,0.00076103,120]
[322535225,1713040720724,-153.90176671,0.00076612,2]
[322535226,1713040720748,-3796.31369882,0.0007671,120]
[322535227,1713040720771,-465.13392178,0.0007671,7]
[322535228,1713040720794,-154.61346633,0.0007671,7]
[322535229,1713040720817,-1194.39665957,0.0007671,7]
[322535230,1713040720840,-154.61346633,0.0007671,7]
[322535231,1713040720866,-2629.46285689,0.0007671,2]
[322535232,1713040720890,-767.15331165,0.0007671,4]
[322535233,1713040720914,-411.55981108,0.0007671,30]
[322535234,1713040720941,-9015.92845735,0.00076712,61]
[322535235,1713040720965,-500.0,0.00076712,120]
[322535236,1713040720989,-500.0,0.00076712,120]
[322535237,1713040721013,-500.0,0.00076712,120]
[322535238,1713040721038,-500.0,0.00076712,120]
[322535239,1713040721062,-504.18011752,0.00076712,120]
[322535240,1713040721087,-500.0,0.00076712,120]
[322535241,1713040721114,-500.0,0.00076712,120]
[322535242,1713040721138,-500.0,0.00076712,120]
[322535243,1713040721161,-500.0,0.00076712,120]
[322535244,1713040721185,-500.0,0.00076712,120]
[322535245,1713040721209,-462.35574982,0.00076712,120]
[322535246,1713040721231,-500.0,0.00076712,120]
[322535247,1713040721254,-506.40917712,0.00076712,120]
[322535248,1713040721277,-305.22099553,0.00076712,120]
[322535249,1713040721301,-500.0,0.00076712,120]
[322535250,1713040721325,-500.0,0.00076712,120]
[322535251,1713040721349,-500.0,0.00076712,120]
[322535252,1713040721378,-500.0,0.00076712,120]
[322535253,1713040721402,-500.0,0.00076712,120]
[322535254,1713040721426,-500.0,0.00076712,120]
[322535255,1713040721449,-500.0,0.00076712,120]
[322535256,1713040721473,-500.0,0.00076712,120]
[322535257,1713040721502,-500.0,0.00076712,120]
[322535258,1713040721530,-500.0,0.00076712,120]
[322535259,1713040721559,-164.23039283,0.00076712,120]
[322535260,1713040721586,-500.0,0.00076712,120]
[322535261,1713040721619,-500.0,0.00076712,120]
[322535262,1713040721648,-500.0,0.00076712,120]
[322535263,1713040721676,-500.0,0.00076712,120]
[322535264,1713040721706,-500.0,0.00076712,120]
[322535265,1713040721731,-500.0,0.00076712,120]
[322535266,1713040721767,-500.0,0.00076712,120]
[322535267,1713040721798,-512.9696895,0.00076712,120]
[322535268,1713040721826,-500.0,0.00076712,120]
[322535269,1713040721854,-500.0,0.00076712,120]
[322535270,1713040721888,-500.0,0.00076712,120]
[322535271,1713040721915,-500.0,0.00076712,120]
[322535272,1713040721942,-500.0,0.00076712,120]
[322535273,1713040721967,-500.0,0.00076712,120]
[322535274,1713040721993,-578.42302313,0.00076712,120]
[322535275,1713040722018,-500.0,0.00076712,120]
[322535276,1713040722045,-500.0,0.00076712,120]
[322535277,1713040722071,-500.0,0.00076712,120]
[322535278,1713040722096,-500.0,0.00076712,120]
[322535279,1713040722126,-500.0,0.00076712,120]
[322535280,1713040722152,-500.0,0.00076712,120]
[322535281,1713040722179,-500.0,0.00076712,120]
[322535282,1713040722208,-500.0,0.00076712,120]
[322535283,1713040722235,-500.0,0.00076712,120]
[322535284,1713040722261,-500.0,0.00076712,120]
[322535285,1713040722286,-500.0,0.00076712,120]
[322535286,1713040722311,-500.0,0.00076712,120]
[322535287,1713040722335,-1000.0,0.00076712,120]
[322535288,1713040722364,-500.0,0.00076712,120]
[322535289,1713040722389,-461.67137375,0.00076712,120]
[322535290,1713040722416,-500.0,0.00076712,120]
[322535291,1713040722442,-593.47491902,0.00076712,120]
[322535292,1713040722469,-500.0,0.00076712,120]
[322535293,1713040722499,-300.0,0.00076712,7]
[322535294,1713040722526,-500.0,0.00076712,120]
[322535295,1713040722551,-500.0,0.00076712,120]
[322535296,1713040722579,-500.0,0.00076712,120]
[322535297,1713040722605,-458.99827013,0.00076712,120]
[322535298,1713040722635,-197.06902276,0.00076712,120]
[322535299,1713040722660,-500.0,0.00076712,120]
[322535300,1713040722685,-500.0,0.00076712,120]
[322535301,1713040722710,-243.77883826,0.00076712,120]
[322535302,1713040722735,-500.0,0.00076712,120]
[322535303,1713040722759,-500.0,0.00076712,120]
[322535304,1713040722787,-500.0,0.00076712,120]
[322535305,1713040722810,-500.0,0.00076712,120]
[322535306,1713040722834,-500.0,0.00076712,120]
[322535307,1713040722861,-201.1226918,0.00076712,120]
[322535308,1713040722886,-500.0,0.00076712,120]
[322535309,1713040722911,-500.0,0.00076712,120]
[322535310,1713040722936,-500.0,0.00076712,120]
[322535311,1713040722961,-500.0,0.00076712,120]
[322535312,1713040722988,-500.0,0.00076712,120]
[322535313,1713040723015,-500.0,0.00076712,120]
[322535314,1713040723042,-500.0,0.00076712,120]
[322535315,1713040723067,-500.0,0.00076712,120]
[322535316,1713040723092,-500.0,0.00076712,7]
[322535317,1713040723121,-500.0,0.00076712,120]
[322535318,1713040723145,-500.0,0.00076712,120]
[322535319,1713040723171,-500.0,0.00076712,120]
[322535320,1713040723196,-500.0,0.00076712,120]
[322535321,1713040723220,-500.0,0.00076712,120]
[322535322,1713040723245,-500.0,0.00076712,120]
[322535323,1713040723269,-500.0,0.00076712,120]
[322535324,1713040723294,-500.0,0.00076712,120]
[322535325,1713040723318,-500.0,0.00076712,120]
[322535326,1713040723342,-500.0,0.00076712,120]
[322535327,1713040723372,-584.58853943,0.00076712,120]
[322535328,1713040723398,-500.0,0.00076712,120]
[322535329,1713040723425,-500.0,0.00076712,120]
[322535330,1713040723451,-534.83,0.00076712,120]
[322535331,1713040723477,-500.0,0.00076712,120]
[322535332,1713040723506,-500.0,0.00076712,120]
[322535333,1713040723533,-2500.0,0.00076712,120]
[322535334,1713040723560,-500.0,0.00076712,120]
[322535335,1713040723591,-500.0,0.00076712,120]
[322535336,1713040723624,-181.35449968,0.00076712,120]
[322535337,1713040736975,-166.666666,0.00041778,2]
[322535338,1713040737000,-154.61346633,0.0005,30]
[322535339,1713040737024,-3374.50106562,0.00054793,120]
[322535340,1713040737047,-2337.30031724,0.00054793,2]
[322535341,1713040737072,-273.33177901,0.00054793,30]
[322535342,1713040737096,-500.0,0.00054794,120]
[322535343,1713040737124,-500.0,0.00054794,120]
[322535344,1713040737148,-1158.92348694,0.00054794,4]
[322535345,1713040737172,-500.0,0.00054794,120]
[322535346,1713040737195,-500.0,0.00054794,120]
[322535347,1713040737219,-500.0,0.00054794,120]
[322535348,1713040737243,-500.0,0.00054794,120]
[322535349,1713040737268,-639.96,0.00054794,120]
[322535350,1713040737293,-500.0,0.00054794,120]
[322535351,1713040737318,-219.50666895,0.00054794,120]
[322535352,1713040737342,-500.0,0.00054794,120]
[322535353,1713040737368,-500.0,0.00054794,120]
[322535354,1713040737392,-2500.0,0.00054794,120]
[322535355,1713040737417,-318.31653243,0.00054794,120]
[322535356,1713040737443,-163.862063,0.00075265,120]
[322535357,1713040737467,-2539.10677851,0.00076328,60]
[322535358,1713040737493,-186.24960787,0.00076708,7]
[322535359,1713040737518,-767.15331165,0.00076708,4]
[322535360,1713040737544,-9589.85608064,0.00076709,120]
[322535361,1713040737569,-1759.1339403,0.00076711,7]
[322535362,1713040737595,-162.48114211,0.00076712,120]
[322535363,1713040737623,-500.0,0.00076712,120]
[322535364,1713040737649,-500.45,0.00076712,120]
[322535365,1713040737673,-500.0,0.00076712,120]
[322535366,1713040737697,-570.23,0.00076712,120]
[322535367,1713040737724,-500.0,0.00076712,120]
[322535368,1713040737749,-762.34,0.00076712,120]
[322535369,1713040737772,-500.0,0.00076712,120]